Cogmind - Beta 16 @@@ ROGUE MODE // 2025.11.14 @ 22:42:28 Player: guru-sr Result: Destroyed by Y-45 Defender with Beam Rifle Performance ------------- Evolutions (1) 500 Regions Visited (5) 1000 Robots Destroyed (143) 715 Value Destroyed (3612) 3612 Prototype IDs (9) 180 Alien Tech Used (0) 0 Bonus (1677) 1677 TOTAL SCORE: 7684 Bonus ------- High Alert Combat Kills 592 Follower Combat Kills 406 Entered Garrisons 200 Used RIF Installer 500 Friendly Fire -21 Cogmind --------- Core Integrity 0/400 Matter 129/300 Energy 100/280 System Corruption 6% Temperature Cool (9) Movement Core (1000) Ox19 Location -9/Garrison Parts ------- > --- POWER (1) -------- Cooled Ion Engine > --- PROPULSION (3) --- (None) > --- UTILITY (3) ------ Improved Heat Sink High-capacity Storage Unit Hardened Light Armor Plating > --- WEAPON (2) ------- Heavy Particle Gun Improved Assault Rifle > --- INVENTORY (20) --- Armored Wheel Experimental Sensor Array Improved Weapon Shielding Improved Weapon Shielding Medium Armor Plating Medium Armor Plating Light Regenerative Plating Relay Coupler [NC] (24) Relay Coupler [Grunt] (22) Relay Coupler [Hunter] (17) Heavy Particle Gun Advanced Beam Cannon Advanced Beam Cannon Datajack Mining Laser Peak State ------------ > --- POWER ------------ Cooled Ion Engine > --- PROPULSION ------- Light Treads Light Treads Light Treads > --- UTILITY ---------- High-capacity Storage Unit Light Regenerative Plating Hacking Suite > --- WEAPON ----------- Advanced Beam Cannon Improved Assault Rifle > --- INVENTORY -------- Cooled Ion Engine Armored Wheel Improved Heat Sink Experimental Sensor Array Improved Weapon Shielding Improved Weapon Shielding Light Armor Plating Medium Armor Plating Medium Armor Plating Medium Armor Plating Hardened Light Armor Plating Relay Coupler [NC] Heavy Particle Gun Heavy Particle Gun Advanced Beam Cannon Advanced Beam Cannon Improved Assault Rifle Rocket Launcher Datajack Mining Laser [Rating: 27] Favorites ----------- Power Ion Engine Engine Ion Engine Power Core Nuclear Core Propulsion Light Treads Treads Light Treads Wheel Compact Wheel Utility Targeting Computer Device Improved Terrain Scanner Storage High-capacity Storage Unit Processor Targeting Computer Hackware Hacking Suite Protection Hardened Light Armor Plating Weapon Assault Rifle Energy Gun Particle Gun Energy Cannon Advanced Beam Cannon Ballistic Gun Assault Rifle Launcher Grenade Launcher Special Weapon Mining Laser Slashing Weapon Mining Claw Build | -11 -10 -10 -9 -9 -9 ------- Run | Yrd Mat Min Mat Sto Gar Slots Evolved 2 | . . . 2 . . Power . | . . . . . . Propulsion 1 | . . . 1 . . Utility 1 | . . . 1 . . Weapon . | . . . . . . Parts Attached 85 | 6 14 9 18 32 6 Power 15 | 1 5 . 6 2 1 Engine 13 | 1 4 . 5 2 1 Core 2 | . 1 . 1 . . Reactor . | . . . . . . Propulsion 30 | 2 2 3 4 18 1 Treads 28 | 1 2 2 4 18 1 Leg . | . . . . . . Wheel 2 | 1 . 1 . . . Hover . | . . . . . . Flight . | . . . . . . Utility 14 | 1 3 3 1 4 2 Device 3 | . 1 1 . . 1 Storage 3 | 1 2 . . . . Processor 3 | . . 2 1 . . Hackware 2 | . . . . 2 . Protection 3 | . . . . 2 1 Artifact . | . . . . . . Weapon 26 | 2 4 3 7 8 2 Energy Gun 3 | . 1 . 1 . 1 Energy Cannon 5 | . . . 3 2 . Ballistic Gun 13 | 2 1 1 3 5 1 Ballistic Cannon . | . . . . . . Launcher 2 | . . 1 . 1 . Special Weapon 2 | . 1 1 . . . Impact Weapon . | . . . . . . Slashing Weapon 1 | . 1 . . . . Piercing Weapon . | . . . . . . Special Melee Weapon . | . . . . . . Unidentified Prototypes 4 | . . 1 . 2 1 Parts Lost 14 | . 3 1 2 1 7 Power 3 | . 2 . . . 1 Propulsion 6 | . . 1 2 . 3 Utility 1 | . . . . 1 . Weapon 4 | . 1 . . . 3 Highest Loss Streak 7 | . 2 1 1 1 7 To Critical Strikes . | . . . . . . Average Backups 18 | 3 13 19 19 19 19 Power 1 | . 1 1 1 . 1 Propulsion 1 | 1 1 2 . . 1 Utility 8 | . 6 9 9 9 9 Weapon 6 | . 3 5 7 7 6 Tool/Special . | . . . . . . Unused Backups 41 | . 12 3 8 5 13 Power 3 | . . . . 3 . Propulsion 4 | . 1 . 1 1 1 Utility 23 | . 7 2 5 . 9 Weapon 10 | . 4 1 2 1 2 Tool/Special 1 | . . . . . 1 Average Slot Usage (%) 99 | . 98 100 99 99 97 Engine 10 | . 11 14 8 9 11 Core 1 | . 2 . 2 1 . Treads 25 | . 14 14 29 33 30 Wheel 5 | . 14 13 3 . . Device 3 | . 13 1 . . 1 Storage 12 | . 14 14 11 10 11 Processor 10 | . . 12 21 3 . Hackware 5 | . . . . 16 9 Energy Gun 3 | . 4 13 . . . Energy Cannon 5 | . . . 5 10 10 Ballistic Gun 14 | . 22 14 14 10 11 Peak Build Rating 27 | 6 13 19 18 25 27 Average Rating 15 | 5 11 11 14 22 24 On Entrance 11 | . 6 12 11 17 23 Avg Prop Armor Cover (%) 13 | 10 12 12 20 . . Naked Turns . | . . . . . . Heaviest Build 91 | 12 91 51 53 60 60 Greatest Support 60 | 20 16 40 60 60 60 Greatest Overweight (x) 5 | . 5 3 3 . 1 Average Overweight (x) 1 | . 2 2 . . . Largest Inventory Capacity 25 | 8 25 20 20 20 20 Average Capacity 19 | 7 17 20 20 19 20 Most Carried 25 | 6 25 20 20 20 20 Average Carried 18 | 3 13 19 19 19 19 Final Capacity 20 | 8 20 20 20 20 20 Final Carried 20 | 6 20 20 20 20 15 Class Distribution -------------------- 49% | Mutant 35% | Scavenger-Mutant 8% | Hacker-Mutant 7% | Commander-Mutant Dominant Class ---------------- Mutant | -10/Materials Mutant | -10/Mines Scavenger-Mutant | -9/Materials Scavenger-Mutant | -9/Storage Scavenger-Mutant | -9/Garrison Resources | -11 -10 -10 -9 -9 -9 ----------- Run | Yrd Mat Min Mat Sto Gar Matter Collected 3149 | 314 583 216 1082 902 52 Remotely . | . . . . . . Salvage Created 5250 | 218 735 244 1282 2384 387 Parts 305 | 11 41 15 84 126 28 Haulers Intercepted 7 | . 2 . . 5 . Recyclers Shooed 3 | . 1 . 2 . . Parts Field Recycled . | . . . . . . Retrieved Matter . | . . . . . . Parts Self-Destructed . | . . . . . . Prevented . | . . . . . . Parts Restored . | . . . . . . Kills | -11 -10 -10 -9 -9 -9 ------- Run | Yrd Mat Min Mat Sto Gar Combat Hostiles Destroyed 94 | . 12 7 28 37 10 Guns 47 | . 12 5 13 10 7 Cannons 30 | . . . 9 18 3 AOE 17 | . . 2 6 9 . Classes Destroyed 15 | 2 5 2 3 3 . Worker 9 | . . 2 1 6 . Builder 2 | . . . 1 1 . Tunneler 9 | 5 1 2 1 . . Hauler 7 | . 2 . . 5 . Recycler 10 | 1 2 . 3 4 . Mechanic 1 | . . . 1 . . Operator 7 | . 1 . 3 3 . Watcher 5 | . 1 . 3 1 . Swarmer 17 | . 3 . 11 . 3 Grunt 47 | . 9 5 10 21 2 Brawler 6 | . . . . 5 1 Duelist 1 | . . . . 1 . Protector 1 | . . . . 1 . Sentry 21 | . . . 7 10 4 Assembled 3 | . . 3 . . . Best Kill Streak 10 | 4 4 4 5 10 8 Combat Bots Only 9 | . 3 2 4 9 8 Max Kills in Single Turn 5 | 1 1 5 4 5 2 Gunslinging 1 | . . . . . 1 Exploded 5 | . . 2 3 5 . Melee . | . . . . . . Uniques/NPCs Destroyed . | . . . . . . Combat | -11 -10 -10 -9 -9 -9 -------- Run | Yrd Mat Min Mat Sto Gar Hostile Shots Fired 431 | . 45 23 97 138 128 Missed 115 | . 11 5 27 41 31 Hits 316 | . 34 18 70 97 97 Melee 13 | . . 4 . 5 4 Projectile 303 | . 34 14 70 92 93 Critical Strikes 6 | . . . 1 5 . Damage Taken 4496 | . 658 300 956 1454 1128 Core 588 | . 114 69 153 173 79 Absorbed by Shields 12 | . . . . . 12 Regen/Repaired (Parts) 639 | . 176 . 87 366 10 Core Remaining (%) 63 | 100 . 26 . . . Volleys Fired 354 | 9 60 28 118 119 20 Largest 2 | 2 2 2 2 2 2 Hottest 120 | 40 100 100 120 101 100 Shots Fired 660 | 18 119 42 208 234 39 Gun 418 | 18 118 36 112 108 26 Cannon 188 | . . . 62 114 12 Launcher 13 | . . 2 4 7 . Special 41 | . 1 4 30 5 1 Kinetic 386 | 18 108 21 112 108 19 Thermal 261 | . 11 19 92 119 20 Explosive 13 | . . 2 4 7 . Electromagnetic . | . . . . . . Robot Hit Streak 43 | 10 12 18 32 43 9 Robot Miss Streak 5 | 1 5 4 4 3 2 Penetration Max . | . . . . . . Secondary Targets 3 | . . . . . 3 Max Gunslinging Chain 1 | . . . . . 1 Shots Hit Robots 450 | 14 73 32 137 164 30 Core Hits 226 | 6 34 22 63 87 14 Critical Kills 2 | . 1 . . 1 . Critical Parts Destroyed 3 | . 2 1 . . . Critical Strikes 7 | . 4 1 1 1 . Burn 1 | . 1 . . . . Meltdown 1 | . . . . 1 . Destroy 5 | . 3 1 1 . . Melee Attacks 9 | . 9 . . . . Impact . | . . . . . . Slashing 9 | . 9 . . . . Piercing . | . . . . . . Sneak Attacks . | . . . . . . Combat Hostiles . | . . . . . . Follow-up Attacks . | . . . . . . Damage Inflicted 8929 | 176 926 692 2603 3966 566 Guns 4412 | 176 926 481 1279 1170 380 Cannons 3034 | . . . 983 1865 186 Explosions 1459 | . . 211 317 931 . Melee . | . . . . . . Ramming . | . . . . . . Kinetic 3994 | 176 812 284 1279 1170 273 Thermal 3476 | . 114 197 1007 1865 293 Explosive 1459 | . . 211 317 931 . Electromagnetic . | . . . . . . Impact . | . . . . . . Slashing . | . . . . . . Piercing . | . . . . . . Highest Corruption 6 | . 4 4 1 5 6 Average Corruption 2 | . 4 4 1 3 5 Corruption Purged . | . . . . . . Corruption Blocked . | . . . . . . Effects 81 | . 11 22 10 33 5 Message Errors 16 | . 2 2 1 10 1 Matter Fused 22 | . 2 7 3 9 1 Heat Flow Errors 10 | . . 7 2 1 . Energy Discharges 7 | . 3 2 . 1 1 Parts Fused 2 | . . . . 2 . Data Loss (minor) 13 | . 2 1 2 6 2 Data Loss (major) 4 | . . 1 1 2 . Misfires 3 | . 1 . 1 1 . Alerts 2 | . . 1 . 1 . Weapon Failures 2 | . 1 1 . . . Overload Shots . | . . . . . . Overflow Damage 36 | . . . 1 35 . Projectiles 35 | . . . . 35 . Explosions 1 | . . . 1 . . Melee . | . . . . . . Knockbacks . | . . . . . . Impact . | . . . . . . Kinetic . | . . . . . . Secondary . | . . . . . . Self-Inflicted Damage 64 | . . . . 64 . Shots 4 | . . . . 4 . Rammed . | . . . . . . Targets Rammed . | . . . . . . Kicked . | . . . . . . Crushed . | . . . . . . Highest Temperature 347 | . 96 318 231 347 266 Average Temperature 54 | . 25 90 28 58 100 Received Heat Transfer 1410 | . 135 85 303 597 290 Effects 9 | . . 4 1 . 4 Energy Bleed 3 | . . 1 1 . 1 Interference 6 | . . 3 . . 3 Siege Activations . | . . . . . . Martial Activations . | . . . . . . Shielding Activations . | . . . . . . Robots Disrupted . | . . . . . . Combat Hostiles . | . . . . . . Robots Corrupted . | . . . . . . Combat Hostiles . | . . . . . . Parts Fried . | . . . . . . Impact Corruptions . | . . . . . . Robots Melted 1 | . . . . 1 . Combat Hostiles . | . . . . . . Parts Melted 11 | . 2 . . 7 2 Heat Transferred 6692 | . 333 444 2085 3275 555 Parts Sabotaged . | . . . . . . Parts Stolen . | . . . . . . Parts Stripped . | . . . . . . Power Chain Reactions . | . . . . . . Alert | -11 -10 -10 -9 -9 -9 ------- Run | Yrd Mat Min Mat Sto Gar Maximum Alert Level 3 | . . . 2 3 3 Low Security (%) 50 | 100 100 100 41 2 . Level 1 25 | . . . 48 37 . Level 2 13 | . . . 9 30 49 Level 3 9 | . . . . 29 50 Level 4 . | . . . . . . Level 5 . | . . . . . . High Security . | . . . . . . Max Security . | . . . . . . Peak Influence 944 | 5 162 85 421 944 817 Initial 612 | . . . . 174 612 Average 248 | . 44 8 218 524 671 Influence Increases 3703 | 30 443 170 1041 1744 275 Destroy 0b10 Robot/C 2080 | . 240 100 560 980 200 Destroy 0b10 Robot/NC 285 | 30 35 30 65 125 . Destroy Leader 476 | . 56 10 136 264 10 Allied During Kill 177 | . . 6 . 171 . Successful Hack 112 | . 45 6 43 18 . Select Force Hacks 150 | . 30 . 60 60 . Disable Machine 60 | . . . 15 45 . Anti-Garrison Action 50 | . . . . . 50 Destroy Structure 118 | . 7 18 57 36 . Partial Spotted 30 | . . . 30 . . Lose Combat Pursuer 165 | . 30 . 75 45 15 Influence Decreases 2886 | 30 443 170 626 1217 400 Entered New Map 571 | . . . . 241 330 Time Decay 1786 | 30 403 131 606 616 . Lost Part 139 | . 30 9 20 10 70 Lost Ally 240 | . 10 30 . 200 . Purge Threat 150 | . . . . 150 . Squads Dispatched 19 | . 2 . 5 12 . Investigation 6 | . 1 . 3 2 . Extermination . | . . . . . . Reinforcement 7 | . 1 . 2 4 . Assault 4 | . . . . 4 . Garrison 2 | . . . . 2 . Intercept . | . . . . . . Searches Triggered . | . . . . . . Construction Impeded . | . . . . . . Haulers Reinforced . | . . . . . . Active Scanning Responses . | . . . . . . Cargo Convoy Interrupts . | . . . . . . Stealth | -11 -10 -10 -9 -9 -9 --------- Run | Yrd Mat Min Mat Sto Gar Distress Signals 8 | . . . 5 3 . Communications Jammed . | . . . . . . Distress Signals . | . . . . . . Times Spotted 168 | . 22 9 55 70 12 Peak Tracking Total 11 | . 4 3 6 8 11 Tactical Retreats 10 | . 2 1 4 2 1 Traps | -11 -10 -10 -9 -9 -9 ------- Run | Yrd Mat Min Mat Sto Gar Traps Triggered 8 | . . . 2 3 3 Indirectly . | . . . . . . Trap Hack Attempts . | . . . . . . Triggered . | . . . . . . Disarmed . | . . . . . . Reprogrammed . | . . . . . . Reused . | . . . . . . Traps Extracted . | . . . . . . Installed . | . . . . . . Triggered . | . . . . . . Machines | -11 -10 -10 -9 -9 -9 ---------- Run | Yrd Mat Min Mat Sto Gar Machines Disabled 5 | . . . 1 3 1 Max in Single Turn 1 | . . . 1 1 1 Garrison Relay 1 | . . . . . 1 Machines Repaired . | . . . . . . Machines Dismantled . | . . . . . . Machines Sabotaged . | . . . . . . Overloaded Fab Kills . | . . . . . . Hacking | -11 -10 -10 -9 -9 -9 --------- Run | Yrd Mat Min Mat Sto Gar Machines Accessed 39 | . 8 1 14 15 1 Terminals 27 | . 6 1 9 10 1 Fabricators . | . . . . . . Repair Stations 4 | . 1 . 1 2 . Recycling Units 5 | . 1 . 2 2 . Scanalyzers 2 | . . . 2 . . Garrison Access 1 | . . . . 1 . Total Hacks 147 | . 36 4 60 46 1 Successful 94 | . 22 1 40 31 . Failed 51 | . 13 3 19 15 1 Catastrophic 5 | . 1 . 2 1 1 Database Lockouts 2 | . 1 . 1 . . Manual 78 | . 24 4 31 19 . Terminals 92 | . 28 4 30 29 1 Fabricators . | . . . . . . Repair Stations 19 | . 6 . 5 8 . Recycling Units 16 | . 2 . 7 7 . Scanalyzers 18 | . . . 18 . . Garrison Access 2 | . . . . 2 . Terminal Hacks 31 | . 10 1 8 12 . Part Schematic 2 | . . . 1 1 . Robot Schematic 1 | . . . 1 . . Robot Analysis 4 | . 3 1 . . . Prototype ID Bank 2 | . 1 . . 1 . Open Door 3 | . . . . 3 . Branch Access Points 1 | . . . 1 . . Emergency Access Points 1 | . . . . 1 . Terminal Index 3 | . 1 . 1 1 . Recycling Unit Index 1 | . . . 1 . . Scanalyzer Index 1 | . . . 1 . . Garrison Index 1 | . . . . 1 . Unreport Threat 1 | . . . . 1 . Locate Traps 2 | . 1 . . 1 . Registered Components 1 | . 1 . . . . Zone Layout 7 | . 3 . 2 2 . Fabricator Hacks . | . . . . . . Repair Station Hacks 19 | . 6 . 5 8 . Scan Component 10 | . 3 . 3 4 . Repair 9 | . 3 . 2 4 . Recycling Unit Hacks 6 | . 1 . 2 3 . Report Inventory 5 | . 1 . 2 2 . Retrieve Components 1 | . . . . 1 . Scanalyzer 16 | . . . 16 . . Insert Component 9 | . . . 9 . . Analyze 7 | . . . 7 . . Garrison Access Hacks 1 | . . . . 1 . Unlock Access 1 | . . . . 1 . Unauthorized Hacks 21 | . 5 . 9 7 . Terminals 13 | . 4 . 5 4 . Assimilate 1 | . 1 . . . . Botnet 9 | . 2 . 4 3 . Operators 3 | . 1 . 1 1 . Fabricators . | . . . . . . Repair Stations . | . . . . . . Recycling Units 7 | . 1 . 4 2 . Monitor 1 | . . . 1 . . Recyclers 1 | . . . 1 . . Tunnel 5 | . 1 . 2 2 . Scanalyzers . | . . . . . . Garrison Access 1 | . . . . 1 . Watchers 1 | . . . . 1 . Data Cores Recovered 1 | . . . 1 . . Used . | . . . . . . Hacking Detections 36 | . 7 1 13 14 1 Full Trace Events 1 | . . . 1 . . Feedback Events . | . . . . . . Feedback Blocked . | . . . . . . Robot Schematics Acquired 1 | . . . 1 . . Robots Built . | . . . . . . Authchips . | . . . . . . Time . | . . . . . . Total Robot Build Rating . | . . . . . . Part Schematics Acquired 9 | . . . 8 1 . Parts Built . | . . . . . . Authchips . | . . . . . . Time . | . . . . . . Total Part Build Rating . | . . . . . . Part Studies Acquired . | . . . . . . Parts Repaired 9 | . 3 . 2 4 . Time 296 | . 84 . 52 160 . Parts Recycled . | . . . . . . Recycled Matter . | . . . . . . Retrieved Matter . | . . . . . . Retrieved Components 10 | . . . . 10 . Parts Scanalyzed 7 | . . . 7 . . Part Schematics Acquired 7 | . . . 7 . . Parts Damaged . | . . . . . . Bothacking | -11 -10 -10 -9 -9 -9 ------------ Run | Yrd Mat Min Mat Sto Gar Used RIF Installer 1 | . . . . . 1 Robots Hacked . | . . . . . . Non-combat . | . . . . . . Combat . | . . . . . . Robot Hacks Applied . | . . . . . . Relay Couplers Released 4 | . . . . . 4 Machine Destruction 4 | . . . . . 4 Fabnet Peak Effective % . | . . . . . . Robots Rewired . | . . . . . . Allies Hacked . | . . . . . . Hacks Repelled . | . . . . . . Allies | -11 -10 -10 -9 -9 -9 -------- Run | Yrd Mat Min Mat Sto Gar Total Allies 16 | . 1 3 . 12 . Largest Group 10 | . 1 3 . 10 . Highest-Rated Group 88 | . 10 40 . 88 . Highest-Rated Ally 31 | . 10 16 . 31 . Total Orders 6 | . 6 . . . . STAY 2 | . 2 . . . . FOLLOW 4 | . 4 . . . . Ally Attacks 122 | . . 14 . 108 . Total Damage 1338 | . . 146 . 1192 . Kills 17 | . . 3 . 14 . Allies Corrupted 1 | . . . . 1 . Allies Melted . | . . . . . . Intel | -11 -10 -10 -9 -9 -9 ------- Run | Yrd Mat Min Mat Sto Gar Active Infowar (turns) 1583 | . 1492 91 . . . Sensors 1 | . . 1 . . . Terrain 1582 | . 1492 90 . . . Robot Analysis Total 4 | . 3 1 . . . Derelict Logs Recovered 1 | . . 1 . . . Drone Launches . | . . . . . . Drone Recoveries . | . . . . . . Exploration | -11 -10 -10 -9 -9 -9 ------------- Run | Yrd Mat Min Mat Sto Gar Turns Passed 7506 | 185 1498 1096 2393 2054 280 Spaces Moved 3447 | 124 722 641 1053 789 118 Core 2 | 2 . . . . . Treads 1665 | 14 . 7 737 789 118 Legs . | . . . . . . Wheels 1780 | 108 722 634 316 . . Hover . | . . . . . . Flight . | . . . . . . Fastest Speed 50 | 50 100 130 130 160 160 Average Speed 149 | 105 140 145 153 160 162 Slowest Speed 240 | 160 175 240 240 160 240 Overloaded Moves . | . . . . . . Propulsion Burnouts . | . . . . . . Robots Hopped . | . . . . . . Potential Cave-ins . | . . . . . . Cave-ins Triggered 1 | . 1 . . . . Exploration Rate (%) 62 | 6 87 92 73 93 23 Regions Visited 5 Branch Regions 2 Pre-discovered Areas 5 | . 1 . 2 2 . Known Exits Taken 2 | . . . 1 1 . Unknown Exits Taken 3 | 1 1 1 . . . Scrap Searched . | . . . . . . Spaces Dug 36 | . 6 . 27 3 . Terrain Destroyed 102 | . 6 18 53 25 . Melee 5 | . 5 . . . . Projectile 31 | . 1 . 27 3 . AOE 66 | . . 18 26 22 . Terrain Rammed . | . . . . . . Walls Destroyed . | . . . . . . Machines Disabled . | . . . . . . Actions | -11 -10 -10 -9 -9 -9 --------- Run | Yrd Mat Min Mat Sto Gar Total 5038 | 157 1072 747 1545 1349 168 Wait 865 | 12 201 49 267 326 10 Move 3442 | 123 721 640 1052 788 118 Hop . | . . . . . . Pick Up 104 | 7 37 6 20 31 3 Fast Attach 18 | 5 2 2 3 6 . Attach 19 | 1 4 1 4 4 5 Detach 2 | . . 1 . 1 . Swap 131 | . 20 13 56 36 6 Drop 93 | . 18 7 25 38 5 Fire 354 | 9 60 28 118 119 20 Melee 9 | . 9 . . . . Ram . | . . . . . . Kick . | . . . . . . Crush . | . . . . . . Escape Stasis 1 | . . . . . 1 Rewire . | . . . . . . Trap . | . . . . . . Miscellaneous . | . . . . . . Route ------- -11/Scrapyard -10/Materials (discovered 5 exits: *Mat x3 / *Min x2) -10/Mines (discovered 2 exits: *Mat x2) -9/Materials (discovered 4 exits: [*Mat] / *Min / *Sto x2) -9/Storage (discovered 2 exits: [*Mat] / Gar) -9/Garrison History --------- Turn | Location | Event 10 | -11/Scrapyard | Discovered new exit (range 16) 186 | -11/Scrapyard | Entered Materials 323 | -10/Materials | Build established: Mutant 617 | -10/Materials | Discovered new exit (range 16) 735 | -10/Materials | Discovered new exit (range 16) 763 | -10/Materials | Central database locked down 1047 | -10/Materials | Discovered new exit (range 12) 1150 | -10/Materials | Crushed by falling debris 1277 | -10/Materials | Repaired Particle Gun 1304 | -10/Materials | Repaired Assault Rifle 1332 | -10/Materials | Repaired Assault Rifle 1430 | -10/Materials | Discovered new exit (range 10) 1626 | -10/Materials | Discovered new exit (range 16) 1684 | -10/Materials | Entered Mines 1769 | -10/Mines | Joined a pair of Derelicts in attacking an 0b10 outpost 1814 | -10/Mines | Discovered new exit (range 7) 1945 | -10/Mines | Found a damaged Exp. Sensor Array with a note attached 1948 | -10/Mines | Found Prototype Device 2072 | -10/Mines | Learned Materials garrison access intel 2228 | -10/Mines | Discovered new exit (range 4) 2234 | -10/Mines | Assisted by bots powering up and referring to "LRC-V3" 2319 | -10/Mines | Excavation squad dispatched 2319 | -10/Mines | A large section of the Mines collapsed 2416 | -10/Mines | Core integrity fell below 50% 2710 | -10/Mines | Identified Exp. Sensor Array 2780 | -10/Mines | Entered Materials 2780 | -9/Materials | Evolved 2 slots: Propulsion x1, Utility x1 3293 | -9/Materials | Identified exit to Mines 3293 | -9/Materials | Identified exit to Storage 3825 | -9/Materials | Build established: Scavenger-Mutant 4295 | -9/Materials | Discovered new exit (range 16) 4651 | -9/Materials | Central database locked down 4929 | -9/Materials | Repaired Beam Cannon 4956 | -9/Materials | Repaired Grenade Launcher 5013 | -9/Materials | Build established: Mutant 5173 | -9/Materials | Entered Storage 5188 | -9/Storage | Assisted by bots powering up and referring to "LRC-V3" 5484 | -9/Storage | Found Prototype Protection 5503 | -9/Storage | Build established: Commander-Mutant 5895 | -9/Storage | Lost 6 allies 5919 | -9/Storage | Repaired Arm. Wheel 5933 | -9/Storage | Core integrity fell below 50% 6152 | -9/Storage | Build established: Hacker-Mutant 6213 | -9/Storage | Discovered new exit (range 17) 6241 | -9/Storage | Met a pair of Derelict thieves 6373 | -9/Storage | First assault squad dispatched 6564 | -9/Storage | Identified exit to Garrison 6656 | -9/Storage | Garrison activated, responded to threat 6761 | -9/Storage | Build established: Scavenger-Mutant 6809 | -9/Storage | Repaired Cld. Ion Engine 6862 | -9/Storage | Repaired Adv. Beam Cannon 6889 | -9/Storage | Repaired Hcp. Storage Unit 7181 | -9/Storage | Garrison activated, responded to threat 7202 | -9/Storage | Core integrity fell below 20% 7227 | -9/Storage | Entered Garrison 7228 | -9/Garrison | Destroyed 9 combat bots 7255 | -9/Garrison | Installed Relay Interface Framework 7365 | -9/Garrison | Garrison Relay disabled 7374 | -9/Garrison | Identified Lgt. Regenerative Plating 7445 | -9/Garrison | Triggered checkpoint 7507 | -9/Garrison | Destroyed by Y-45 Defender with Beam Rifle Last Messages --------------- 07481_ Field strength at 31. 07482_ Stasis field depleted. 07484_ System corrupted: Component data lost. 07484_ Adv. Beam Cannon destroyed. 07485_ Lgt. Treads destroyed. 07485_ System corrupted by crushing effect (+1). 07490_ B-36 Bruiser destroyed. 07490_ Switching to secondary target: G-34 Mercenary. 07491_ Lgt. Treads destroyed. 07493_ S-10 Pest destroyed. 07493_ Switching to secondary target: G-34 Mercenary. 07493_ G-34 Mercenary destroyed. 07495_ Imp. Assault Rifle destroyed. 07497_ S-10 Pest destroyed. 07500_ G-34 Mercenary destroyed. 07500_ Switching to secondary target: Y-45 Defender. 07501_ Cld. Ion Engine destroyed. Map ----- +----------------------------------------------------+ | ?????????????????????????????????????????????????? | | ?????????????????????????????????????????????????? | | ?????????????????????????????????????????????????? | | ?????????????????????????????????????????????????? | | ?????????????????????????????????????????????????? | | ?????????????????????????????????????????????????? | | ?????????????????????????????????????????????????? | | ??????????????????""???? #?????????????????????? | | ???????????????? ??? #?????????????????????? | | ????????????? ??? ??? +?????????????????????? | | ???????????? ?? ??? #?????????????????????? | | ????????????# ?# ??? #?????????????????????? | | ????????????# ## ??# ###???????????????????? | | ????????????" ? Y ????????????????????? | | ?????????????? ? ????????????????????? | | ??????????????? ? ?????????????????????? | | ???????????????? ? ?????????????????????? | | ????????????# ???# ?# #?????????????????????? | | ????????????# ## ## [ #?????????????????????? | | ????????????# =!===#?????????????????????? | | ????????????# =[*%[#?????????????????????? | | ????????????# =%=*=#???????????????????### | | ?????????????# ## ##%[!#???????????????????#"" | | ?????????????????# ?#=/=#???????????????????#" | | ?????????????????####??#%^^#???????????????????#" | | ???????????????????????#=@%#???????????????????#" | | ???????????????????????# = #???????????????????# | | ???????????????????????# #???????????????????## | | ???????????????????????# ###################### | | ???????????????????????# | | ???????????????????????# !!= | | ???????????????????????# [[%* | | ???????????????????????#####################* ### | | ???????????????????????????????????????????# #?# | | ???????????????????????????????????????????# #?# | | ?????????????????????????????############### #?# | | ?????????????????????????????# #?# | | ?????????????????????????????# ! #?# | | ?????????????????????????????##!! ##### #####?# | | ?????????????????????????????#""!""#??# #?????# | | ?????????????????????????????#######??#####?????# | | ????????????????????????????????????????????????# | | ???????????????????????????????????????????????## | | ???????????????????????????????????????????????#" | | ???????????????????????????????????????????????#T | | ???????????????????????????????????????????????#"" | | ???????????????????????????????????????????????### | | ?????????????????????????????????????????????????? | | ?????????????????????????????????????????????????? | | ?????????????????????????????????????????????????? | +----------------------------------------------------+ Best States ------------- Heat Dissipation 42 Energy Generation 14 Energy Capacity 280 Matter Stores 300 Matter Capacity 300 Sight Range 16 Terrain Scan Range 16 Terrain Scan Density 10 Armor Coverage 150 Evasion (%) 40 Targeting Accuracy 10 Recoil Reduction 3 Offensive Hacking 20 Item Schematics ----------------- Hcp. Storage Unit | -9/Materials | Hacked Hacking Suite | -9/Materials | Scanalyzed Hrd. Light Armor Plating | -9/Materials | Scanalyzed Hvy. Particle Gun | -9/Materials | Scanalyzed Targeting Computer | -9/Materials | Scanalyzed ECM Suite | -9/Materials | Scanalyzed Imp. Weapon Shielding | -9/Materials | Scanalyzed Med. Armor Plating | -9/Materials | Scanalyzed Imp. Targeting Computer | -9/Storage | Hacked Robot Schematics ------------------ M-13 Machinist | -9/Materials | Hacked Fabricated ------------ Nothing Repaired ---------- Particle Gun | 4% | -10/Materials Assault Rifle | 29% | -10/Materials Assault Rifle | 67% | -10/Materials Beam Cannon | 35% | -9/Materials Grenade Launcher | 63% | -9/Materials Arm. Wheel | 37% | -9/Storage Cld. Ion Engine | 37% | -9/Storage Adv. Beam Cannon | 50% | -9/Storage Hcp. Storage Unit | 66% | -9/Storage Studied --------- None Alien Tech Used ----------------- None Achievements -------------- Join The Dark Side Network Effect Quick And Dirty Challenges ------------ None Game ------ Seed SystemDrainedHammerchucker Manual? 0 Play Time 02:20:37 Cumulative 18.6 hours Start 2025.11.14 @ 19:37:12 End 2025.11.14 @ 22:42:28 Sessions 1 Manual Loads 0 Difficulty Rogue Special Mode None Game No. 13 Rogue 13 Adventurer 0 Explorer 0 Win Type - Total 1 Types 1/0/0/0/0/0/0/0/0/0 Lore% 9 Gallery% 16 Achievement% 26 Wizard Run 0 Options --------- Layout 1 ASCII 0 Keyboard 0 Movement Mouse Keybinds 0 Fullscreen 1 Font 24/Smallcaps Map View 50x35 Zoom Use 0% Tactical HUD 1 Map Filters NONE Filters NONE Steam 1 RUN: 8ded4b88-d7b4-4386-b8e8-0cd0cf055181